Cogmind - Beta 14 @@@ ROGUE MODE // 2024.11.20 @ 21:45:06 Player: Komeiji O. Result: Destroyed by G-67 Veteran with Plasma Rifle Performance ------------- Evolutions (7) 3500 Regions Visited (20) 4000 Robots Destroyed (269) 1345 Value Destroyed (11214) 11214 Prototype IDs (35) 700 Alien Tech Used (0) 0 Bonus (4612) 4612 TOTAL SCORE: 25371 Bonus ------- Triggered Max Security 1000 High Alert Combat Kills 734 Follower Combat Kills 142 Entered Garrisons 600 Used RIF Installer 2000 Aligned with FarCom 300 Friendly Fire -164 Cogmind --------- Core Integrity 0/1300 Matter 214/300 Energy 99/100 System Corruption 48% Temperature Cool (0) Movement Core (50) Location -3/Quarantine Parts ------- > --- POWER (2) -------- (None) > --- PROPULSION (5) --- (None) > --- UTILITY (12) ----- Machine Analyzer Enhanced Optical Array Advanced Signal Interpreter Core Analyzer > --- WEAPON (2) ------- Segregator > --- INVENTORY (5) ---- Micro Antimatter Reactor Heavy Armored Exoskeleton Peak State ------------ > --- POWER ------------ Light Particle Reactor Micro Antimatter Reactor > --- PROPULSION ------- Improved Antigrav System Improved Antigrav System Improved Antigrav System Improved Antigrav System Improved Antigrav System > --- UTILITY ---------- Advanced Heat Sink Advanced Heat Sink Medium Storage Unit Machine Analyzer Enhanced Optical Array Improved Terrain Scanner Advanced Target Analyzer Quantum Capacitor Improved Cloaking Device Graphene Brace Relay Coupler [NC] > --- WEAPON ----------- Compact HERF Cannon Linear Accelerator > --- INVENTORY -------- Micro Fission Core Biometal Medium Treads Biometal Medium Treads Biometal Medium Treads Small Battery Small Battery Small Battery Hacking Suite Heavy Disruptor Cannon [Rating: 130] Favorites ----------- Power Deuterium Engine Engine Deuterium Engine Power Core Micro Nuclear Core Reactor Micro Antimatter Reactor Propulsion Light Treads Treads Light Treads Leg Flexi-carbon Leg Wheel Armored Wheel Hover Unit Improved Antigrav System Flight Unit Q-thruster Utility Relay Coupler [Sentry] Device Advanced Heat Sink Storage High-capacity Storage Unit Processor Targeting Computer Hackware Relay Coupler [Sentry] Protection Improved Light Armor Plating Weapon Power Maul Energy Gun Heavy EM Shotgun Energy Cannon Heavy Plasma Cannon Ballistic Gun Light Assault Rifle Ballistic Cannon Magnetic Acceleration Cannon Launcher Advanced EMP Blaster Special Weapon Remote Datajack Impact Weapon Power Maul Slashing Weapon Scythe Special Melee Weapon Datajack Build | -11 -10 -10 -9 -9 -9 -8 -8 -8 -8 -7 -6 -6 -6 -6 -5 -4 -4 -4 -3 -3 ------- Run | Yrd Mat Min Mat Min Exi Min Mat Gar Mat Fac Fac Gar Fac Gar Fac Fac Was Fac Res Qua Slots Evolved 14 | . . . 2 . . . 2 . . 2 2 . . . 2 2 . . 2 . Power 1 | . . . . . . . . . . . . . . . . . . . 1 . Propulsion 3 | . . . 1 . . . 1 . . . . . . . . 1 . . . . Utility 10 | . . . 1 . . . 1 . . 2 2 . . . 2 1 . . 1 . Weapon . | . . . . . . . . . . . . . . . . . . . . . Parts Attached 457 | 7 14 2 39 3 1 1 24 31 30 17 22 34 23 48 36 18 3 13 85 6 Power 42 | 1 2 . 4 . . . 1 2 1 1 2 2 1 3 2 1 . 2 15 2 Engine 21 | 1 2 . 4 . . . 1 1 1 . 1 2 1 1 2 1 . 2 1 . Core 8 | . . . . . . . . 1 . 1 1 . . 2 . . . . 3 . Reactor 13 | . . . . . . . . . . . . . . . . . . . 11 2 Propulsion 88 | 2 1 . 7 1 . . 8 3 8 4 4 4 3 8 7 1 1 3 22 1 Treads 41 | 2 . . 4 . . . 6 2 8 4 2 4 2 1 . . . 1 5 . Leg 17 | . . . . . . . . . . . . . . 6 3 . . 1 6 1 Wheel 17 | . 1 . 3 1 . . 2 1 . . 1 . 1 . 3 . . . 4 . Hover 8 | . . . . . . . . . . . . . . . 1 . . . 7 . Flight 5 | . . . . . . . . . . . 1 . . 1 . 1 1 1 . . Utility 144 | 2 7 . 19 . . . 5 7 4 3 8 7 9 17 11 12 1 5 25 2 Device 70 | 1 4 . 15 . . . 2 4 . . 4 3 4 5 8 4 1 3 12 . Storage 12 | 1 2 . . . . . . . 1 . 1 . . . . . . . 6 1 Processor 12 | . . . . . . . 1 . . . . . 1 . 1 1 . 2 5 1 Hackware 24 | . . . . . . . . 2 3 1 . 3 1 6 . 7 . . 1 . Protection 26 | . 1 . 4 . . . 2 1 . 2 3 1 3 6 2 . . . 1 . Artifact . | . . . . . . . . . . . . . . . . . . . . . Weapon 183 | 2 4 2 9 2 1 1 10 19 17 9 8 21 10 20 16 4 1 3 23 1 Energy Gun 29 | 1 . . 3 1 . . 4 7 6 4 . . 1 . 1 . . . 1 . Energy Cannon 38 | . . . . . . . 2 4 2 . 1 3 3 3 8 . . 1 11 . Ballistic Gun 24 | 1 4 1 2 . . 1 1 . . 2 2 6 . 4 . . . . . . Ballistic Cannon 8 | . . . . . . . . . . . . . 1 1 . 1 . . 5 . Launcher 21 | . . 1 4 1 . . 1 2 3 1 . 1 1 3 2 . . . 1 . Special Weapon 31 | . . . . . . . . 2 3 . 2 7 4 5 3 1 1 1 2 . Impact Weapon 24 | . . . . . . . . . 3 2 3 4 . 4 2 2 . 1 3 . Slashing Weapon 7 | . . . . . . . 2 4 . . . . . . . . . . . 1 Piercing Weapon . | . . . . . . . . . . . . . . . . . . . . . Special Melee Weapon 1 | . . . . . 1 . . . . . . . . . . . . . . . Unidentified Prototypes 8 | . . . 1 . . . 1 . 1 . 1 . 2 . . 1 . . 1 . Corrupted Parts 2 | 1 . . . . . . . . . . . . . . 1 . . . . . System Corruption 3 | 1 . . . . . . . . . . . . . . 2 . . . . . Parts Lost 115 | . 7 . 6 3 . . 2 5 1 4 2 4 1 7 17 5 . 1 50 . Power 15 | . 1 . 1 . . . . 2 . 1 . . . 1 1 . . . 8 . Propulsion 43 | . 1 . 3 1 . . 1 2 . . 2 2 . 2 10 2 . . 17 . Utility 33 | . 2 . 1 . . . 1 . . 1 . 1 . 2 6 2 . 1 16 . Weapon 24 | . 3 . 1 2 . . . 1 1 2 . 1 1 2 . 1 . . 9 . Highest Loss Streak 16 | . 4 . 4 3 . . 1 2 1 3 2 3 1 2 8 2 . 1 16 . To Critical Strikes 2 | . . . . . . . . . . . . . . 1 1 . . . . . Average Slot Usage (%) 92 | . 93 100 99 99 100 100 98 97 99 94 89 91 92 93 88 68 62 84 82 41 Engine 6 | . 14 14 11 11 11 11 9 5 8 6 . 6 5 3 4 3 . 3 1 . Core 1 | . . . . . . . . 2 . . 5 . . 2 . . . . . . Treads 15 | . 22 14 19 11 11 11 16 22 35 30 17 11 13 2 . . . 3 5 . Leg 2 | . . . . . . . . . . . . . . 14 15 . . 3 4 2 Wheel 6 | . 3 14 12 21 22 22 18 11 . . 3 6 6 3 1 1 . . 1 . Device 9 | . 12 14 18 22 22 22 11 8 . . 7 12 6 2 9 15 5 10 19 . Storage 7 | . 14 14 11 11 11 11 9 9 9 7 6 6 6 6 5 2 . . 5 2 Processor 6 | . . . . . . . 6 9 9 7 6 6 10 6 5 10 10 14 15 27 Hackware 13 | . . . . . . . . . 15 18 20 20 23 31 25 25 36 27 7 3 Protection 3 | . . . 3 . . . 9 9 2 6 6 6 4 4 4 . . . . . Energy Gun 5 | . 5 . 14 21 12 11 8 11 9 6 . . 1 . . . . . . . Energy Cannon 1 | . . . . . . . 2 . . . . 5 5 3 5 1 . . 4 . Ballistic Gun 3 | . 18 28 7 . . 10 6 . . 1 4 2 . 2 1 . . . . . Special Weapon 1 | . . . . . . . . 1 5 . . . 2 2 1 . 5 5 . . Impact Weapon 2 | . . . . . . . . . 2 5 7 3 1 2 1 2 . 4 . . Peak Build Rating 130 | 7 9 9 18 18 18 19 35 39 39 48 61 65 62 69 77 74 55 107 130 79 Average Rating 48 | 5 8 9 13 17 17 18 27 34 35 44 55 60 58 61 70 61 54 93 106 62 On Entrance 36 | . 7 9 9 17 18 18 19 34 34 36 41 58 57 58 64 49 46 55 107 28 Naked Turns . | . . . . . . . . . . . . . . . . . . . . . Heaviest Build 132 | 14 50 50 61 55 55 55 63 67 63 76 120 118 115 113 132 119 5 26 67 12 Greatest Support 98 | 40 40 10 26 24 24 24 42 86 80 96 96 28 28 70 70 10 3 25 98 90 Greatest Overweight (x) 37 | . 4 4 5 4 2 2 2 4 4 . 4 4 4 3 13 37 1 1 3 . Average Overweight (x) 1 | . 1 4 2 2 2 2 1 1 . . 2 3 3 2 2 2 1 . . . Largest Inventory Capacity 25 | 8 20 20 20 20 20 20 20 20 20 20 25 25 25 25 25 25 5 5 10 5 Average Capacity 19 | 7 15 20 20 20 20 20 20 20 20 20 23 25 25 25 25 17 5 5 8 5 Most Carried 25 | 5 20 20 20 20 20 20 20 20 20 20 25 25 25 25 25 23 5 5 10 5 Average Carried 18 | 3 14 20 19 19 19 19 19 19 19 19 22 24 24 24 24 14 5 4 6 1 Final Capacity 25 | 8 20 20 20 20 20 20 20 20 20 20 25 25 25 25 25 5 5 5 5 5 Final Carried 25 | 5 20 20 20 20 20 20 20 20 20 19 25 25 25 25 24 5 5 5 2 5 Class Distribution -------------------- 39% | Mutant 27% | Bothacker-Mutant 8% | Scavenger-Mutant 6% | Botlord-Mutant 5% | Scavenger-Skirmisher Dominant Class ---------------- Mutant | -10/Materials Mutant | -10/Mines Scavenger-Mutant | -9/Materials Mutant | -9/Mines Mutant | -9/Exiles Skirmisher | -8/Mines Mutant | -8/Materials Mutant | -8/Garrison Bothacker-Mutant | -8/Materials Mutant | -7/Factory Bothacker-Mutant | -6/Factory Bothacker-Mutant | -6/Garrison Bothacker-Mutant | -6/Factory Bothacker-Mutant | -6/Garrison Botlord-Mutant | -5/Factory Botlord-Mutant | -4/Factory Bothacker-Mutant | -4/Waste Bothacker-Assassin | -4/Factory Scavenger-Skirmisher | -3/Research Mutant | -3/Quarantine Resources | -11 -10 -10 -9 -9 -9 -8 -8 -8 -8 -7 -6 -6 -6 -6 -5 -4 -4 -4 -3 -3 ----------- Run | Yrd Mat Min Mat Min Exi Min Mat Gar Mat Fac Fac Gar Fac Gar Fac Fac Was Fac Res Qua Matter Collected 7538 | 279 514 16 554 75 10 . 252 610 543 222 215 754 217 976 520 260 . 32 1489 . Remotely . | . . . . . . . . . . . . . . . . . . . . . Salvage Created 10381 | 97 679 20 841 44 . . 748 1031 839 800 595 591 242 595 728 250 . 32 2249 . Parts 571 | 9 43 5 67 11 . . 55 72 40 33 12 14 8 43 28 5 . . 126 . Haulers Intercepted 5 | . 1 . . . . . 3 . . . . . . . 1 . . . . . Recyclers Shooed 6 | . . . . . . . . . . . . . 1 . . . . . 5 . Parts Field Recycled . | . . . . . . . . . . . . . . . . . . . . . Retrieved Matter . | . . . . . . . . . . . . . . . . . . . . . Parts Self-Destructed . | . . . . . . . . . . . . . . . . . . . . . Prevented . | . . . . . . . . . . . . . . . . . . . . . Kills | -11 -10 -10 -9 -9 -9 -8 -8 -8 -8 -7 -6 -6 -6 -6 -5 -4 -4 -4 -3 -3 ------- Run | Yrd Mat Min Mat Min Exi Min Mat Gar Mat Fac Fac Gar Fac Gar Fac Fac Was Fac Res Qua Combat Hostiles Destroyed 203 | . 14 3 21 6 . . 14 26 11 13 6 16 2 17 13 5 . . 36 . Melee 14 | . . . . . . . . 2 . 1 2 4 . 2 . 1 . . 2 . Guns 76 | . 13 . 18 2 . . 9 11 5 9 1 6 1 1 . . . . . . Cannons 51 | . . . . . . . 1 8 4 . 1 2 1 4 8 1 . . 21 . AOE 49 | . 1 3 3 4 . . 3 5 1 2 . 4 . 10 5 . . . 8 . Classes Destroyed 16 | 1 6 . 1 . . . 1 2 2 . 1 1 . 1 . . . . . . Worker 13 | . . . . . . . 2 . 4 . 1 . . . 1 . . 2 3 . Builder 12 | . 1 . . . . . 1 . 1 . . . . . 3 . . . 6 . Tunneler 8 | 4 . . . 1 . . 1 . 1 . . . . . 1 . . . . . Hauler 5 | . 1 . . . . . 3 . . . . . . . 1 . . . . . Recycler 5 | . . . . . . . . . . . 2 . 1 . . . . . 2 . Mechanic 1 | . . . . . . . . . 1 . . . . . . . . . . . Operator 5 | . 2 . . . . . 1 . 1 1 . . . . . . . . . . Watcher 16 | . 3 . 3 . . . . 1 4 1 1 . . . 1 . . . 2 . Swarmer 58 | . 3 3 6 6 . . 6 8 . . 1 7 . 6 4 1 . . 7 . Cutter 4 | . . . . . . . . . . . . . . 4 . . . . . . Grunt 74 | . 11 . 10 . . . 6 4 5 7 . 7 . 4 7 2 . . 11 . Brawler 1 | . . . . . . . . . . . . 1 . . . . . . . . Duelist 3 | . . . . . . . . 3 . . . . . . . . . . . . Sentry 28 | . . . 5 . . . 2 4 5 4 3 1 1 1 . . . . 2 . Hunter 5 | . . . . . . . . . 1 . . . . 2 . . . . 2 . Programmer 31 | . . . . . . . . 7 . 2 2 . 1 1 2 2 . . 14 . Best Kill Streak 23 | 2 4 3 4 6 . . 4 5 4 5 2 7 1 6 10 3 . 2 23 . Combat Bots Only 14 | . 4 3 4 6 . . 4 5 3 5 1 7 1 6 5 3 . . 14 . Max Kills in Single Turn 6 | 1 2 3 3 1 . . 2 2 3 2 1 3 1 5 5 1 . 1 6 . Gunslinging 1 | . . . 1 . . . . . . . . . . . . . . . . . Exploded 5 | . 1 3 3 1 . . 2 2 1 1 . 3 . 5 2 . . . 3 . Melee 1 | . . . . . . . . 1 . 1 1 1 . 1 . 1 . . 1 . Uniques/NPCs Destroyed . | . . . . . . . . . . . . . . . . . . . . . Combat | -11 -10 -10 -9 -9 -9 -8 -8 -8 -8 -7 -6 -6 -6 -6 -5 -4 -4 -4 -3 -3 -------- Run | Yrd Mat Min Mat Min Exi Min Mat Gar Mat Fac Fac Gar Fac Gar Fac Fac Was Fac Res Qua Hostile Shots Fired 1720 | . 93 4 106 40 . . 67 118 43 244 91 116 21 124 139 43 . 2 456 13 Missed 530 | . 26 . 34 9 . . 19 36 19 82 30 40 6 33 36 15 . 1 139 5 Damage Taken 19582 | . 960 35 908 345 . . 636 1192 427 1445 903 1201 123 1660 2188 462 . 24 6914 159 Core 3028 | . 147 6 98 53 . . 43 94 34 146 52 140 15 412 237 238 . . 1176 137 Absorbed by Shields 245 | . . . . . . . . . . . . . . . 184 61 . . . . Reduced by Siege Mode 22 | . . . . . . . . . . . . . . . . . . . 22 . Ignored by Resistances 359 | . . . . . . . 46 20 2 85 . . . 13 . . . . 193 . Regen/Repaired (Parts) 79 | . . . . . . . . . . . . . 79 . . . . . . . Core Remaining (%) 66 | 100 . 38 . . . 62 . . 68 79 . . . 27 76 . . 79 . . Volleys Fired 764 | 9 71 1 58 9 . . 47 67 48 38 15 61 23 51 55 8 11 4 188 . Largest 2 | 2 2 1 2 2 . . 2 2 2 2 2 2 2 2 2 2 1 1 2 . Hottest 188 | 60 60 30 110 101 . . 113 120 120 95 120 120 165 120 188 159 7 7 138 . Shots Fired 1023 | 18 118 1 114 17 . . 85 77 54 63 19 87 25 60 74 11 11 4 185 . Gun 510 | 18 118 . 113 13 . . 69 36 26 59 9 35 2 9 . . . . 3 . Cannon 370 | . . . . . . . 13 23 11 . 5 36 19 19 64 11 . . 169 . Launcher 32 | . . 1 1 4 . . 3 5 1 4 . 3 . 4 2 . . . 4 . Special 111 | . . . . . . . . 13 16 . 5 13 4 28 8 . 11 4 9 . Kinetic 340 | 9 102 . 77 . . . 41 . . 18 9 35 1 11 . 5 . . 32 . Thermal 311 | . . . 18 9 . . 13 23 11 . 5 36 20 17 64 6 . . 89 . Explosive 25 | . . 1 1 4 . . 3 5 1 . . 3 . 2 1 . . . 4 . Electromagnetic 236 | 9 16 . 18 4 . . 28 36 26 45 . . . 2 1 . . . 51 . Robot Hit Streak 28 | 7 20 4 14 10 . . 10 13 12 27 28 15 9 8 9 3 4 6 18 . Robot Miss Streak 11 | 1 4 . 3 3 . . 4 2 2 2 1 1 1 7 4 3 3 . 11 . Penetration Max . | . . . . . . . . . . . . . . . . . . . . . Secondary Targets 9 | . 4 . 2 1 . . . . . 2 . . . . . . . . . . Max Gunslinging Chain 1 | . 1 . 1 1 . . . . . 1 . . . . . . . . . . Capacitor 88 | . . . . . . . . . . . . . . . . . . . 88 . Shots Hit Robots 706 | 13 86 1 80 6 1 . 56 49 36 63 22 63 12 34 42 12 6 6 118 . Core Hits 439 | 6 40 3 42 6 . . 35 39 27 41 6 23 5 33 32 2 . . 99 . Critical Kills 8 | . 2 . . . . . 1 . . . . 1 . 3 . 1 . . . . Critical Parts Destroyed 12 | . 1 . . . . . . . . 1 . 3 . 1 1 4 . 1 . . Critical Strikes 30 | . 3 . . 1 . . 1 . . 1 . 4 . 4 1 6 . 1 8 . Burn 1 | . . . . 1 . . . . . . . . . . . . . . . . Meltdown 2 | . . . . . . . 1 . . . . . . . . 1 . . . . Destroy 5 | . 3 . . . . . . . . . . . . 2 . . . . . . Blast 6 | . . . . . . . . . . . . . . . . 1 . . 5 . Corrupt 3 | . . . . . . . . . . . . . . . . . . . 3 . Smash 13 | . . . . . . . . . . 1 . 4 . 2 1 4 . 1 . . Melee Attacks 158 | . . . . . 1 . 4 13 9 14 54 16 . 12 3 13 . 11 8 . Impact 140 | . . . . . . . . . 9 14 54 16 . 12 3 13 . 11 8 . Slashing 17 | . . . . . . . 4 13 . . . . . . . . . . . . Piercing . | . . . . . . . . . . . . . . . . . . . . . Sneak Attacks 12 | . . . . . 1 . . . 2 . 3 3 . . 1 . . 2 . . Combat Hostiles 3 | . . . . . . . . . . . . 3 . . . . . . . . Follow-up Attacks . | . . . . . . . . . . . . . . . . . . . . . Damage Inflicted 22954 | 127 862 126 1230 326 . . 1283 1724 1401 1733 943 2005 289 1287 2438 500 . 186 6494 . Guns 5848 | 127 801 . 1059 78 . . 783 502 576 1029 133 650 22 78 . . . . 10 . Cannons 8687 | . . . . . . . 175 801 269 . 145 519 267 390 1198 139 . . 4784 . Explosions 5456 | . 56 126 171 248 . . 315 359 318 337 . 315 . 612 1112 . . . 1487 . Melee 2821 | . . . . . . . . 62 238 367 665 521 . 207 100 361 . 186 114 . Ramming 142 | . 5 . . . . . 10 . . . . . . . 28 . . . 99 . Kinetic 3858 | 50 598 . 607 . . . 379 . . 283 133 650 . 113 . 74 . . 971 . Thermal 7921 | . 56 . 116 57 . . 256 838 547 129 145 519 289 355 1888 65 . . 2661 . Explosive 3704 | . . 126 171 248 . . 234 322 40 . . 315 . 537 291 . . . 1420 . Electromagnetic 4508 | 77 203 . 336 21 . . 404 502 576 954 . . . 75 131 . . . 1229 . Impact 2759 | . . . . . . . . . 238 367 665 521 . 207 100 361 . 186 114 . Slashing 62 | . . . . . . . . 62 . . . . . . . . . . . . Piercing . | . . . . . . . . . . . . . . . . . . . . . Highest Corruption 48 | 1 3 3 . . . . . 6 6 . 2 5 5 8 5 5 19 19 46 48 Average Corruption 7 | 1 1 3 . . . . . 3 6 . 1 2 5 6 3 3 15 19 21 46 Corruption Purged . | . . . . . . . . . . . . . . . . . . . . . Corruption Blocked . | . . . . . . . . . . . . . . . . . . . . . Effects 339 | . 10 . . . . . . 30 55 . 13 13 24 39 21 2 10 26 81 15 Message Errors 76 | . 4 . . . . . . 9 13 . 1 1 5 12 5 . . 5 20 1 Matter Fused 75 | . 1 . . . . . . 10 18 . 4 2 3 5 8 1 2 4 15 2 Heat Flow Errors 35 | . 1 . . . . . . 3 4 . 3 1 3 4 4 . 2 2 8 . Energy Discharges 41 | . 1 . . . . . . 2 6 . 2 3 3 5 . . 1 4 11 3 Parts Rejected 6 | . . . . . . . . 1 2 . . . . 1 . . 1 . . 1 Data Loss (minor) 40 | . 1 . . . . . . 1 6 . 2 2 4 4 3 1 . 7 7 2 Data Loss (major) 16 | . 1 . . . . . . 1 3 . . 1 4 2 . . . 2 1 1 Misfires 9 | . . . . . . . . 1 2 . . 1 . 3 . . . . 2 . Alerts 12 | . 1 . . . . . . 2 1 . 1 2 1 1 1 . . 1 1 . Misdirections 17 | . . . . . . . . . . . . . . . . . 4 1 7 5 Weapon Failures 12 | . . . . . . . . . . . . . 1 2 . . . . 9 . Overload Shots . | . . . . . . . . . . . . . . . . . . . . . Overflow Damage 1871 | . . . 12 20 . . 15 65 158 151 353 148 17 101 282 212 . 161 176 . Projectiles 275 | . . . . . . . . 65 . . . . 17 23 11 9 . . 150 . Explosions 274 | . . . 12 20 . . 15 . 10 11 . 2 . 28 171 . . . 5 . Melee 1322 | . . . . . . . . . 148 140 353 146 . 50 100 203 . 161 21 . Knockbacks 28 | . . . . . . . . . 1 4 4 . . 1 . 5 . 1 12 . Impact 16 | . . . . . . . . . 1 4 4 . . 1 . 4 . 1 1 . Kinetic 10 | . . . . . . . . . . . . . . . . 1 . . 9 . Secondary 2 | . . . . . . . . . . . . . . . . . . . 2 . Self-Inflicted Damage 1049 | . 12 . 41 91 . . 36 75 67 126 . . . 313 288 . . . . . Shots 30 | . 1 . 1 3 . . 1 2 1 4 . . . 12 5 . . . . . Rammed 22 | . 2 . . . . . 1 . . . . . . . 1 . . . 18 . Targets Rammed 43 | . 2 . . . . . 1 . . . . . . . 3 . . . 37 . Kicked 19 | . . . . . . . . . . . . . . . 2 . . . 17 . Crushed 2 | . . . . . . . . . . . . . . . . . . . 2 . Highest Temperature 402 | 40 158 . 135 128 . . 89 331 280 234 320 234 160 264 156 . 200 210 402 . Average Temperature 74 | 16 29 . 47 58 . . 45 97 96 73 120 33 61 72 49 . 99 106 98 . Received Heat Transfer 3363 | . 405 9 297 . . . 324 126 144 417 66 434 36 93 614 26 . . 372 . Effects 3 | . . . . . . . . 2 . . . . . . . . . . 1 . Shutdowns 2 | . . . . . . . . 1 . . . . . . . . . . 1 . Energy Bleed 1 | . . . . . . . . 1 . . . . . . . . . . . . Siege Activations 1 | . . . . . . . . . . . . . . . . . . . 1 . Total Turns 10 | . . . . . . . . . . . . . . . . . . . 10 . Longest Duration 10 | . . . . . . . . . . . . . . . . . . . 10 . Robots Corrupted 18 | . . . . . . . . . 3 2 5 . . . 1 2 . 1 4 . Combat Hostiles 10 | . . . . . . . . . 1 1 2 . . . . 2 . . 4 . Parts Fried 40 | 1 . . 1 . . . . 1 6 7 7 3 . 1 1 . . 1 11 . Impact Corruptions 43 | . . . . . . . . . 5 6 12 5 . 1 1 6 . 5 2 . Robots Melted 3 | . . . . . . . 1 . . . . . . . . 1 . . 1 . Combat Hostiles 3 | . . . . . . . 1 . . . . . . . . 1 . . 1 . Parts Melted 34 | . 2 . . . . . 3 6 3 . 2 1 3 3 4 2 . . 5 . Heat Transferred 9900 | . 50 . 296 222 . . 396 1570 760 50 320 830 450 650 2010 100 . . 2196 . Parts Sabotaged 3 | . . . . . . . . . . . . . . . . . . . . 3 Parts Stolen . | . . . . . . . . . . . . . . . . . . . . . Parts Stripped . | . . . . . . . . . . . . . . . . . . . . . Power Chain Reactions 13 | . 1 . 1 1 . . 2 1 3 3 . . . . . . . . 1 . Alert | -11 -10 -10 -9 -9 -9 -8 -8 -8 -8 -7 -6 -6 -6 -6 -5 -4 -4 -4 -3 -3 ------- Run | Yrd Mat Min Mat Min Exi Min Mat Gar Mat Fac Fac Gar Fac Gar Fac Fac Was Fac Res Qua Peak Influence 1615 | 20 272 93 285 289 . . 387 1121 629 219 142 472 291 583 838 455 100 99 666 1615 Initial 546 | . 13 . 35 111 . . . 128 546 102 66 30 242 . 305 354 85 70 1 284 Average 237 | 7 78 91 104 201 . . 141 631 276 96 52 325 171 289 287 400 93 62 373 1596 Maximum Alert Level 5 | . 1 . 1 1 . . 1 4 2 1 . 2 1 2 3 2 . . 2 5 Low Security (%) 57 | 100 90 100 89 40 . 100 80 4 46 88 100 24 54 19 56 . 100 100 19 . Level 1 21 | . 9 . 10 59 . . 19 21 23 11 . 17 45 56 24 28 . . 24 . Level 2 16 | . . . . . . . . 33 30 . . 57 . 24 . 71 . . 55 . Level 3 3 | . . . . . . . . 29 . . . . . . 19 . . . . . Level 4 . | . . . . . . . . 11 . . . . . . . . . . . . Level 5 . | . . . . . . . . . . . . . . . . . . . . . High Security . | . . . . . . . . . . . . . . . . . . . . . Max Security . | . . . . . . . . . . . . . . . . . . . . 99 Squads Dispatched 46 | . 3 . 4 . . . 3 . 1 10 2 . 1 . 4 1 . 1 10 6 Investigation 4 | . . . 1 . . . 1 . . 1 . . . . . . . . 1 . Extermination 12 | . . . . . . . . . . 2 2 . 1 . 1 1 . 1 4 . Reinforcement 13 | . 3 . 3 . . . 2 . 1 1 . . . . 1 . . . 2 . Assault 8 | . . . . . . . . . . . . . . . 2 . . . . 6 Garrison 9 | . . . . . . . . . . 6 . . . . . . . . 3 . Intercept . | . . . . . . . . . . . . . . . . . . . . . Searches Triggered . | . . . . . . . . . . . . . . . . . . . . . Construction Impeded 2 | . . . . . . . . . . . . . . . 1 . . . 1 . Haulers Reinforced . | . . . . . . . . . . . . . . . . . . . . . Active Scanning Responses . | . . . . . . . . . . . . . . . . . . . . . Cargo Convoy Interrupts 1 | . . . . . . . . . . 1 . . . . . . . . . . Alert ID Control Effect 4 | . . . . . . . . . . . . 1 . . . . . 1 2 . Stealth | -11 -10 -10 -9 -9 -9 -8 -8 -8 -8 -7 -6 -6 -6 -6 -5 -4 -4 -4 -3 -3 --------- Run | Yrd Mat Min Mat Min Exi Min Mat Gar Mat Fac Fac Gar Fac Gar Fac Fac Was Fac Res Qua Distress Signals 21 | . 3 . 2 . . . 4 . 1 1 1 . . . . . . . 9 . Communications Jammed . | . . . . . . . . . . . . . . . . . . . . . Distress Signals . | . . . . . . . . . . . . . . . . . . . . . Times Spotted 342 | . 24 4 33 5 . . 23 29 24 17 13 20 3 23 24 7 3 6 69 15 Peak Tracking Total 12 | . 5 3 6 5 . . 6 6 3 4 3 3 2 8 7 3 1 5 7 12 Tactical Retreats 26 | . 2 . 3 . . . . 3 . 2 1 . . 2 6 . . . 7 . Traps | -11 -10 -10 -9 -9 -9 -8 -8 -8 -8 -7 -6 -6 -6 -6 -5 -4 -4 -4 -3 -3 ------- Run | Yrd Mat Min Mat Min Exi Min Mat Gar Mat Fac Fac Gar Fac Gar Fac Fac Was Fac Res Qua Traps Triggered 27 | . 2 . 1 . . . 1 5 1 1 . 4 3 5 2 2 . . . . Indirectly . | . . . . . . . . . . . . . . . . . . . . . Trap Hack Attempts . | . . . . . . . . . . . . . . . . . . . . . Triggered . | . . . . . . . . . . . . . . . . . . . . . Disarmed . | . . . . . . . . . . . . . . . . . . . . . Reprogrammed . | . . . . . . . . . . . . . . . . . . . . . Reused . | . . . . . . . . . . . . . . . . . . . . . Traps Extracted . | . . . . . . . . . . . . . . . . . . . . . Installed . | . . . . . . . . . . . . . . . . . . . . . Triggered 1 | . . . . . . . . . . 1 . . . . . . . . . . Most Traps Carried 4 | . . . . . . . . . . . . . . 4 4 4 . . . . Machines | -11 -10 -10 -9 -9 -9 -8 -8 -8 -8 -7 -6 -6 -6 -6 -5 -4 -4 -4 -3 -3 ---------- Run | Yrd Mat Min Mat Min Exi Min Mat Gar Mat Fac Fac Gar Fac Gar Fac Fac Was Fac Res Qua Machines Disabled 42 | . . . . 1 . . 3 4 . 4 . 2 . 5 21 1 . . 1 . Max in Single Turn 17 | . . . . 1 . . 1 1 . 3 . 1 . 1 17 1 . . 1 . Garrison Access 4 | . . . . . . . . . . 1 . . . . 2 . . . 1 . Garrison Relay 6 | . . . . . . . . 3 . . . 2 . 1 . . . . . . Machines Repaired . | . . . . . . . . . . . . . . . . . . . . . Machines Dismantled . | . . . . . . . . . . . . . . . . . . . . . Machines Sabotaged . | . . . . . . . . . . . . . . . . . . . . . Overloaded Fab Kills . | . . . . . . . . . . . . . . . . . . . . . Hacking | -11 -10 -10 -9 -9 -9 -8 -8 -8 -8 -7 -6 -6 -6 -6 -5 -4 -4 -4 -3 -3 --------- Run | Yrd Mat Min Mat Min Exi Min Mat Gar Mat Fac Fac Gar Fac Gar Fac Fac Was Fac Res Qua Machines Accessed 57 | . 4 . 7 . 3 . 7 2 9 1 7 1 5 1 3 1 . 2 4 . Terminals 42 | . 4 . 7 . . . 6 2 9 . 3 1 3 1 2 1 . 1 2 . Fabricators 3 | . . . . . . . . . . . 1 . 1 . . . . . 1 . Repair Stations . | . . . . . . . . . . . . . . . . . . . . . Recycling Units 2 | . . . . . . . . . . . 1 . . . . . . 1 . . Scanalyzers 1 | . . . . . . . . . . . 1 . . . . . . . . . Garrison Access 6 | . . . . . . . 1 . . 1 1 . 1 . 1 . . . 1 . Total Hacks 144 | . 14 . 19 . 3 . 21 4 25 2 13 3 12 2 11 3 . 3 9 . Successful 74 | . 6 . 11 . 3 . 14 1 10 2 9 1 3 . 5 2 . 1 6 . Failed 69 | . 8 . 8 . . . 7 3 14 . 4 2 9 2 6 1 . 2 3 . Catastrophic 17 | . . . 2 . . . 3 . 3 . 1 . 4 . . . . 1 3 . Database Lockouts 1 | . . . . . . . . . 1 . . . . . . . . . . . Manual 85 | . 10 . 16 . 1 . 16 . 22 . 5 . 6 . 4 1 . 1 3 . Terminals 121 | . 14 . 19 . . . 20 4 25 . 6 3 9 2 9 3 . 1 6 . Fabricators 4 | . . . . . . . . . . . 1 . 2 . . . . . 1 . Repair Stations . | . . . . . . . . . . . . . . . . . . . . . Recycling Units 5 | . . . . . . . . . . . 3 . . . . . . 2 . . Scanalyzers 2 | . . . . . . . . . . . 2 . . . . . . . . . Garrison Access 9 | . . . . . . . 1 . . 2 1 . 1 . 2 . . . 2 . Terminal Hacks 32 | . 5 . 3 . 3 . 8 1 6 . . 1 . . 2 1 . . 2 . Record 4 | . . . . . 2 . 1 . . . . . . . 1 . . . . . Part Schematic 1 | . 1 . . . . . . . . . . . . . . . . . . . Robot Analysis 5 | . . . . . . . 4 . 1 . . . . . . . . . . . Open Door 1 | . . . . . . . . . . . . . . . . . . . 1 . Branch Access Points 1 | . . . . . . . . . . . . . . . . 1 . . . . Emergency Access Points 2 | . . . . . . . . 1 . . . 1 . . . . . . . . Terminal Index 1 | . . . . . . . . . . . . . . . 1 . . . . . Unreport Threat 5 | . 1 . 1 . . . 1 . 2 . . . . . . . . . . . Locate Traps 6 | . 2 . 2 . . . . . 2 . . . . . . . . . . . Recall Reinforcements 1 | . . . . . . . 1 . . . . . . . . . . . . . Hauler Manifests 1 | . . . . . . . . . 1 . . . . . . . . . . . Zone Layout 3 | . 1 . . . . . 1 . . . . . . . . . . . 1 . Derelict Proto ID Bank 1 | . . . . . 1 . . . . . . . . . . . . . . . Fabricator Hacks 1 | . . . . . . . . . . . 1 . . . . . . . . . Network Status 1 | . . . . . . . . . . . 1 . . . . . . . . . Repair Station Hacks . | . . . . . . . . . . . . . . . . . . . . . Recycling Unit Hacks 2 | . . . . . . . . . . . 1 . . . . . . 1 . . Retrieve Components 2 | . . . . . . . . . . . 1 . . . . . . 1 . . Scanalyzer 2 | . . . . . . . . . . . 2 . . . . . . . . . Insert Component 1 | . . . . . . . . . . . 1 . . . . . . . . . Analyze 1 | . . . . . . . . . . . 1 . . . . . . . . . Garrison Access Hacks 9 | . . . . . . . 1 . . 2 1 . 1 . 2 . . . 2 . Unlock Access 3 | . . . . . . . 1 . . . 1 . 1 . . . . . . . Seal Access 3 | . . . . . . . . . . 1 . . . . 1 . . . 1 . Coupler Status 3 | . . . . . . . . . . 1 . . . . 1 . . . 1 . Unauthorized Hacks 28 | . 1 . 8 . . . 5 . 4 . 4 . 2 . 1 1 . . 2 . Terminals 26 | . 1 . 8 . . . 5 . 4 . 2 . 2 . 1 1 . . 2 . Track 1 | . . . . . . . . . . . . . . . . . . . 1 . Assimilate 2 | . . . . . . . . . 1 . 1 . . . . . . . . . Botnet 15 | . 1 . 2 . . . 3 . 3 . 1 . 2 . 1 1 . . 1 . Skim 8 | . . . 6 . . . 2 . . . . . . . . . . . . . Fabricators . | . . . . . . . . . . . . . . . . . . . . . Repair Stations . | . . . . . . . . . . . . . . . . . . . . . Recycling Units 2 | . . . . . . . . . . . 2 . . . . . . . . . Reject 1 | . . . . . . . . . . . 1 . . . . . . . . . Recyclers 1 | . . . . . . . . . . . 1 . . . . . . . . . Scanalyzers . | . . . . . . . . . . . . . . . . . . . . . Garrison Access . | . . . . . . . . . . . . . . . . . . . . . Data Cores Recovered 1 | . . . . . . . . . 1 . . . . . . . . . . . Used . | . . . . . . . . . . . . . . . . . . . . . Hacking Detections 45 | . 4 . 7 . . . 5 2 7 1 3 1 4 1 3 1 . 2 4 . Full Trace Events 1 | . . . . . . . . . . . . . . . . . . . 1 . Feedback Events . | . . . . . . . . . . . . . . . . . . . . . Feedback Blocked . | . . . . . . . . . . . . . . . . . . . . . Robot Schematics Acquired . | . . . . . . . . . . . . . . . . . . . . . Robots Built . | . . . . . . . . . . . . . . . . . . . . . Authchips . | . . . . . . . . . . . . . . . . . . . . . Time . | . . . . . . . . . . . . . . . . . . . . . Total Robot Build Rating . | . . . . . . . . . . . . . . . . . . . . . Part Schematics Acquired 2 | . 1 . . . . . . . . . 1 . . . . . . . . . Parts Built . | . . . . . . . . . . . . . . . . . . . . . Authchips . | . . . . . . . . . . . . . . . . . . . . . Time . | . . . . . . . . . . . . . . . . . . . . . Total Part Build Rating . | . . . . . . . . . . . . . . . . . . . . . Parts Repaired . | . . . . . . . . . . . . . . . . . . . . . Time . | . . . . . . . . . . . . . . . . . . . . . Parts Recycled . | . . . . . . . . . . . . . . . . . . . . . Recycled Matter . | . . . . . . . . . . . . . . . . . . . . . Retrieved Matter . | . . . . . . . . . . . . . . . . . . . . . Retrieved Components 3 | . . . . . . . . . . . 1 . . . . . . 2 . . Parts Scanalyzed 1 | . . . . . . . . . . . 1 . . . . . . . . . Part Schematics Acquired 1 | . . . . . . . . . . . 1 . . . . . . . . . Parts Damaged . | . . . . . . . . . . . . . . . . . . . . . Bothacking | -11 -10 -10 -9 -9 -9 -8 -8 -8 -8 -7 -6 -6 -6 -6 -5 -4 -4 -4 -3 -3 ------------ Run | Yrd Mat Min Mat Min Exi Min Mat Gar Mat Fac Fac Gar Fac Gar Fac Fac Was Fac Res Qua Used RIF Installer 4 | . . . . . . . . 2 . . . 1 . 1 . . . . . . Coupler Efficiency 1 | . . . . . . . . . . . . . . 1 . . . . . . Robot Detection 1 | . . . . . . . . . . . . 1 . . . . . . . . Alert ID Control 1 | . . . . . . . . 1 . . . . . . . . . . . . Robots Hacked 50 | . . . . . 1 . . 2 8 . 4 7 2 10 5 . 6 2 3 . Non-combat 7 | . . . . . 1 . . . 1 . . . 1 . 3 . . 1 . . Combat 43 | . . . . . . . . 2 7 . 4 7 1 10 2 . 6 1 3 . Robot Hacks Applied 56 | . . . . . 1 . . 3 8 . 4 8 2 10 5 . 8 3 4 . parse_system 3 | . . . . . 1 . . . . . . . . 1 1 . . . . . no_distress 1 | . . . . . . . . . 1 . . . . . . . . . . . find_fabricator 1 | . . . . . . . . . . . . . . . 1 . . . . . drop_inventory 2 | . . . . . . . . . . . . . . . 2 . . . . . locate_traps 1 | . . . . . . . . . . . . . . . . . . 1 . . summon_haulers 1 | . . . . . . . . . . . . . . . . . . 1 . . ignore_targets 6 | . . . . . . . . . . . . . . . . . 6 . . . find_shortcuts 1 | . . . . . . . . . . . . 1 . . . . . . . . link_fov 2 | . . . . . . . . . . . . . . . . . 2 . . . reboot_propulsion 1 | . . . . . . . . . . . 1 . . . . . . . . . scatter_targeting 4 | . . . . . . . . . 1 . 1 . . 2 . . . . . . overload_power 5 | . . . . . . . . . . . 1 1 1 2 . . . . . . amplify_resonance 5 | . . . . . . . . 1 3 . . . . . . . . . 1 . wipe_record 1 | . . . . . . . . . . . . . . 1 . . . . . . overwrite_iff 8 | . . . . . . . . 1 . . 1 3 . 1 . . . . 2 . streamctrl_high 1 | . . . . . . . . 1 . . . . . . . . . . . . formatsys_low 1 | . . . . . . . . . . . . . 1 . . . . . . . formatsys_high 12 | . . . . . . . . . 3 . . 3 . 3 1 . . 1 1 . Relay Couplers Released 36 | . . . . . . . . 13 . 1 . 9 . 9 4 . . . . . Machine Destruction 32 | . . . . . . . . 13 . 1 . 9 . 5 4 . . . . . Programmers 4 | . . . . . . . . . . . . . . 4 . . . . . . Attached 22 | . . . . . . . . 2 3 1 . 3 1 6 . 6 . . . . Fabnet Peak Effective % . | . . . . . . . . . . . . . . . . . . . . . Robots Rewired 9 | . 1 . . . . . . 5 . . . . . 3 . . . . . . Allies Hacked . | . . . . . . . . . . . . . . . . . . . . . Hacks Repelled . | . . . . . . . . . . . . . . . . . . . . . Allies | -11 -10 -10 -9 -9 -9 -8 -8 -8 -8 -7 -6 -6 -6 -6 -5 -4 -4 -4 -3 -3 -------- Run | Yrd Mat Min Mat Min Exi Min Mat Gar Mat Fac Fac Gar Fac Gar Fac Fac Was Fac Res Qua Total Allies 32 | . 1 . . . . . . 7 3 . 2 6 1 7 1 . . 1 3 . Largest Group 5 | . 1 . . . . . . 5 1 . 1 1 1 3 1 . . 1 1 . Highest-Rated Group 86 | . 8 . . . . . . 86 16 . 26 47 14 49 49 . . 49 56 . Highest-Rated Ally 56 | . 8 . . . . . . 18 16 . 26 47 14 41 49 . . 49 56 . Total Orders 8 | . . . . . . . . . 2 . 2 . 3 1 . . . . . . STAY 4 | . . . . . . . . . 1 . 1 . 1 1 . . . . . . FOLLOW 3 | . . . . . . . . . 1 . 1 . 1 . . . . . . . AID 1 | . . . . . . . . . . . . . 1 . . . . . . . Ally Attacks 121 | . 4 . . . . . . 24 15 . 1 20 . 36 3 . . 5 13 . Total Damage 2296 | . 34 . . . . . . 405 242 . 18 359 . 598 84 . . 105 451 . Kills 9 | . . . . . . . . 3 . . . 1 . 2 . . . 1 2 . Allies Corrupted 1 | . . . . . . . . . . . . . . . 1 . . . . . Allies Melted . | . . . . . . . . . . . . . . . . . . . . . Intel | -11 -10 -10 -9 -9 -9 -8 -8 -8 -8 -7 -6 -6 -6 -6 -5 -4 -4 -4 -3 -3 ------- Run | Yrd Mat Min Mat Min Exi Min Mat Gar Mat Fac Fac Gar Fac Gar Fac Fac Was Fac Res Qua Robot Analysis Total 5 | . . . . . . . 4 . 1 . . . . . . . . . . . Derelict Logs Recovered 2 | . . . . 2 . . . . . . . . . . . . . . . . Drone Launches . | . . . . . . . . . . . . . . . . . . . . . Drone Recoveries . | . . . . . . . . . . . . . . . . . . . . . Exploration | -11 -10 -10 -9 -9 -9 -8 -8 -8 -8 -7 -6 -6 -6 -6 -5 -4 -4 -4 -3 -3 ------------- Run | Yrd Mat Min Mat Min Exi Min Mat Gar Mat Fac Fac Gar Fac Gar Fac Fac Was Fac Res Qua Turns Passed 20127 | 221 1270 139 1180 657 467 186 1187 1447 1827 1625 1914 860 871 1558 1661 428 180 579 1722 148 Spaces Moved 11136 | 112 623 96 610 520 386 153 783 843 959 778 1052 395 492 688 594 248 162 556 928 158 Core 335 | 2 . . . . . . . . . . . . . . . 59 162 16 4 92 Treads 3090 | 110 396 . . . . . 11 233 928 778 337 . . . . . . . 297 . Legs 1313 | . . . . . . . . . . . . . . 270 501 . . 271 205 66 Wheels 5546 | . 227 96 610 520 386 153 772 610 31 . 715 395 492 418 93 28 . . . . Hover 422 | . . . . . . . . . . . . . . . . . . . 422 . Flight 430 | . . . . . . . . . . . . . . . . 161 . 269 . . Fastest Speed 35 | 50 140 140 105 120 120 120 108 120 150 162 130 145 145 145 170 35 100 40 44 50 Average Speed 143 | 158 160 140 136 120 120 120 120 132 165 165 152 149 149 163 238 132 100 87 111 87 Slowest Speed 2195 | 160 240 140 165 150 120 120 232 150 170 167 165 160 160 260 680 2195 100 190 260 140 Overloaded Moves . | . . . . . . . . . . . . . . . . . . . . . Propulsion Burnouts . | . . . . . . . . . . . . . . . . . . . . . Robots Hopped 1 | . . . . . . . . . . . . . . . . . . 1 . . Cave-ins Triggered . | . . . . . . . . . . . . . . . . . . . . . Exploration Rate (%) 43 | 6 90 19 55 88 87 47 57 46 68 24 30 42 13 77 13 5 86 13 20 23 Regions Visited 20 Branch Regions 5 Pre-discovered Areas 3 | . . 1 1 . 1 . . . . . . . . . . . . . . . Known Exits Taken 6 | . . . 1 . . 1 1 . 1 . 1 . 1 . . . . . . . Unknown Exits Taken 9 | 1 1 1 . 1 1 . . . . 1 . . . . 1 . . 1 1 . Scrap Searched 4 | . . . . 4 . . . . . . . . . . . . . . . . Spaces Dug 144 | . . . . 6 . . 4 . 19 5 38 16 9 2 9 6 . 9 21 . Terrain Destroyed 584 | . 1 8 13 33 . . 37 62 36 14 38 41 9 43 107 9 . 9 124 . Melee 74 | . . . . . . . 4 . 6 5 37 3 . 2 2 3 . 9 3 . Projectile 98 | . . . . . . . . . 3 . 1 15 9 2 23 6 . . 39 . AOE 412 | . 1 8 13 33 . . 33 62 27 9 . 23 . 39 82 . . . 82 . Terrain Rammed . | . . . . . . . . . . . . . . . . . . . . . Walls Destroyed . | . . . . . . . . . . . . . . . . . . . . . Machines Disabled . | . . . . . . . . . . . . . . . . . . . . . Actions | -11 -10 -10 -9 -9 -9 -8 -8 -8 -8 -7 -6 -6 -6 -6 -5 -4 -4 -4 -3 -3 --------- Run | Yrd Mat Min Mat Min Exi Min Mat Gar Mat Fac Fac Gar Fac Gar Fac Fac Was Fac Res Qua Total 14061 | 136 794 100 852 536 389 155 939 1083 1139 1030 1237 551 601 1038 750 312 175 624 1453 167 Wait 1049 | 4 43 . 101 . . . 41 88 70 171 73 . 41 188 37 9 . 32 151 . Move 11118 | 111 622 95 609 519 385 152 783 842 958 777 1052 394 492 687 593 248 161 553 927 158 Hop 1 | . . . . . . . . . . . . . . . . . . 1 . . Pick Up 195 | 5 23 1 21 4 1 1 17 15 10 5 16 10 8 16 12 3 . 4 23 . Fast Attach 105 | 7 1 . 4 . . . 1 2 5 1 1 1 9 7 9 7 2 7 37 4 Attach 91 | . 6 . 6 3 . . 5 6 1 6 4 4 2 10 7 6 . 3 20 2 Detach 28 | . . . . . . . . 1 . 1 . . 2 4 . 5 . 3 10 2 Swap 263 | . 7 2 29 . 1 1 18 23 24 10 17 29 13 31 20 6 1 3 28 . Drop 172 | . 7 1 24 1 1 1 22 10 14 7 9 12 11 9 11 7 . 3 21 1 Fire 764 | 9 71 1 58 9 . . 47 67 48 38 15 61 23 51 55 8 11 4 188 . Melee 154 | . . . . . 1 . 4 13 9 14 50 16 . 12 3 13 . 11 8 . Ram 8 | . . . . . . . 1 . . . . . . . 1 . . . 6 . Kick 19 | . . . . . . . . . . . . . . . 2 . . . 17 . Crush 17 | . 2 . . . . . . . . . . . . . . . . . 15 . Escape Stasis 62 | . . . . . . . . 16 . . . 24 . 22 . . . . . . Rewire 15 | . 12 . . . . . . . . . . . . 1 . . . . 2 . Trap . | . . . . . . . . . . . . . . . . . . . . . Miscellaneous . | . . . . . . . . . . . . . . . . . . . . . Route ------- -11/Scrapyard -10/Materials (discovered 4 exits: *Mat x3 / [*Min]) -10/Mines -9/Materials (discovered 4 exits: *Mat x2 / *Min x2) -9/Mines (discovered 3 exits: *Mat x2 / *Exi) -9/Exiles -8/Mines (discovered 2 exits: *Mat x2) -8/Materials (discovered 4 exits: *Fac x3 / Gar) -8/Garrison -8/Materials (discovered 2 exits: *Fac x2) -7/Factory (discovered 4 exits: *Fac / [*Sto] / [*Low x2]) -6/Factory (discovered 4 exits: *Fac x3 / Gar) -6/Garrison -6/Factory (discovered 2 exits: [*Low] / Gar) -6/Garrison (discovered 4 exits: *Fac x3 / [*Fac]) -5/Factory (discovered 2 exits: *Fac / [*Upp]) -4/Factory (discovered 4 exits: Upp x2 / Ext x2) -4/Waste -4/Factory -3/Research -3/Quarantine History --------- Turn | Location | Event 24 | -11/Scrapyard | Discovered new exit (range 15) 222 | -11/Scrapyard | Entered Materials 320 | -10/Materials | Build established: Mutant 542 | -10/Materials | Discovered new exit (range 10) 963 | -10/Materials | Core integrity fell below 50% 1020 | -10/Materials | Lost 4 parts (1n1u2w) 1228 | -10/Materials | Discovered new exit (range 16) 1405 | -10/Materials | Discovered new exit (range 9) 1438 | -10/Materials | Discovered new exit (range 3) 1492 | -10/Materials | Entered Mines 1567 | -10/Mines | Discovered new exit (range 12) 1573 | -10/Mines | Learned location of Storage (-7) 1631 | -10/Mines | Entered Materials 1631 | -9/Materials | Evolved 2 slots: Propulsion x1, Utility x1 1764 | -9/Materials | Discovered new exit (range 9) 1852 | -9/Materials | Lost 4 parts (1p2n1w) 2056 | -9/Materials | Discovered new exit (range 13) 2643 | -9/Materials | Build established: Scavenger-Mutant 2709 | -9/Materials | Learned location of Zion (-6) 2790 | -9/Materials | Identified exit to Materials 2790 | -9/Materials | Identified exit to Mines 2811 | -9/Materials | Entered Mines 2861 | -9/Mines | Lost 3 parts (1n2w) 2869 | -9/Mines | Discovered exit to Materials (range 11) 2878 | -9/Mines | Learned 2 Materials zone layouts 3123 | -9/Mines | Build established: Mutant 3276 | -9/Mines | Deemed a non-threat by the Exiles lab entrance 3276 | -9/Mines | Discovered new exit (range 5) 3321 | -9/Mines | Discovered exit to Materials (range 8) 3468 | -9/Mines | Entered Exiles 3497 | -9/Exiles | Met 8R-AWN 3518 | -9/Exiles | Met EX-HEX 3559 | -9/Exiles | Met EX-BIN 3573 | -9/Exiles | Aligned with FarCom system 3575 | -9/Exiles | Given EX-Vault access code 3602 | -9/Exiles | Opened EX-Vault 3610 | -9/Exiles | Found Gui. Plasma Cannon 3646 | -9/Exiles | Warned to stay clear of 0b10 Research branches 3682 | -9/Exiles | Met EX-DEC 3750 | -9/Exiles | Visited The Gauntlet 3924 | -9/Exiles | Discovered new exit (range 10) 3935 | -9/Exiles | Left Exiles lab with Gui. Plasma Cannon 3935 | -9/Exiles | Entered Mines 3985 | -8/Mines | Discovered exit to Materials (range 15) 4020 | -8/Mines | Discovered exit to Materials (range 7) 4121 | -8/Mines | Entered Materials 4121 | -8/Materials | Evolved 2 slots: Propulsion x1, Utility x1 4122 | -8/Materials | Identified exit to Factory 4825 | -8/Materials | Discovered exit to Factory (range 12) 5181 | -8/Materials | Discovered exit to Factory (range 8) 5308 | -8/Materials | Identified exit to Garrison 5308 | -8/Materials | Entered Garrison 5336 | -8/Garrison | Triggered checkpoint 5466 | -8/Garrison | Triggered checkpoint 5661 | -8/Garrison | Triggered checkpoint 5839 | -8/Garrison | Lost 5 allies 5991 | -8/Garrison | Discovered new exit (range 12) 6038 | -8/Garrison | Triggered checkpoint 6089 | -8/Garrison | Installed Relay Interface Framework 6223 | -8/Garrison | Expanded RIF knowledge: Alert ID Control 6263 | -8/Garrison | Garrison Relay disabled 6574 | -8/Garrison | Garrison Relay disabled 6586 | -8/Garrison | Garrison Relay disabled 6755 | -8/Garrison | Entered Materials 7158 | -8/Materials | Build established: Bothacker-Mutant 7765 | -8/Materials | Discovered exit to Factory (range 10) 7926 | -8/Materials | Discovered exit to Factory (range 5) 7997 | -8/Materials | Central database locked down 8245 | -8/Materials | Build established: Mutant 8582 | -8/Materials | Entered Factory 8582 | -7/Factory | Evolved 2 slots: Utility x2 8795 | -7/Factory | Discovered new exit (range 9) 9065 | -7/Factory | Discovered new exit (range 5) 9199 | -7/Factory | Garrison activated, responded to threat 9218 | -7/Factory | Discovered new exit (range 9) 9464 | -7/Factory | Discovered new exit (range 12) 9925 | -7/Factory | Garrison activated, responded to threat 10030 | -7/Factory | Lost 3 parts (1p1u1w) 10198 | -7/Factory | Cargo convoy interrupted 10207 | -7/Factory | Entered another Factory area 10207 | -6/Factory | Evolved 2 slots: Utility x2 10245 | -6/Factory | Discovered new exit (range 15) 11039 | -6/Factory | Build established: Bothacker-Mutant 11612 | -6/Factory | Discovered new exit (range 9) 11753 | -6/Factory | Discovered new exit (range 12) 12121 | -6/Factory | Identified exit to Garrison 12121 | -6/Factory | Entered Garrison 12245 | -6/Garrison | Lost 3 parts (2n1w) 12327 | -6/Garrison | Triggered checkpoint 12335 | -6/Garrison | Garrison Relay disabled 12450 | -6/Garrison | Expanded RIF knowledge: Robot Detection 12453 | -6/Garrison | Destroyed 7 combat bots 12474 | -6/Garrison | Garrison Relay disabled 12657 | -6/Garrison | Triggered checkpoint 12670 | -6/Garrison | Triggered checkpoint 12732 | -6/Garrison | Heavy support dispatched to Factory 12787 | -6/Garrison | Discovered new exit (range 11) 12981 | -6/Garrison | Entered Factory 13142 | -6/Factory | Discovered new exit (range 5) 13819 | -6/Factory | Found Prototype Launcher 13819 | -6/Factory | Identified Scatter Rocket Array 13823 | -6/Factory | Found Scatter Rocket Array 13852 | -6/Factory | Identified exit to Garrison 13852 | -6/Factory | Entered Garrison 14271 | -6/Garrison | Discovered new exit (range 5) 14496 | -6/Garrison | Triggered checkpoint 14511 | -6/Garrison | Core integrity fell below 50% 14566 | -6/Garrison | Lost 3 allies 14866 | -6/Garrison | Lost 3 allies 14940 | -6/Garrison | Discovered new exit (range 10) 15024 | -6/Garrison | Triggered checkpoint 15088 | -6/Garrison | Discovered new exit (range 12) 15103 | -6/Garrison | Expanded RIF knowledge: Coupler Efficiency 15152 | -6/Garrison | Garrison Relay disabled 15198 | -6/Garrison | Triggered checkpoint 15298 | -6/Garrison | Triggered checkpoint 15384 | -6/Garrison | Discovered new exit (range 8) 15410 | -6/Garrison | Entered Factory 15410 | -5/Factory | Evolved 2 slots: Utility x2 15517 | -5/Factory | Discovered new exit (range 14) 15604 | -5/Factory | Build established: Scavenger-Mutant 15659 | -5/Factory | Discovered new exit (range 7) 15978 | -5/Factory | Build established: Botlord-Mutant 16627 | -5/Factory | Build established: Botlord-Skirmisher 16742 | -5/Factory | Garrison activated, responded to threat 16756 | -5/Factory | Lost 8 parts (4n4u) 16910 | -5/Factory | First assault squad dispatched 16999 | -5/Factory | Build established: Botlord-Mutant 17071 | -5/Factory | Entered another Factory area 17071 | -4/Factory | Evolved 2 slots: Propulsion x1, Utility x1 17089 | -4/Factory | Lost 4 parts (1p2n1u) 17141 | -4/Factory | Identified exit to Upper Caves 17141 | -4/Factory | Identified exit to Extension 17499 | -4/Factory | Sucked down chute 17499 | -4/Factory | Entered Waste 17509 | -4/Waste | Spotted C-40 Crusher 17514 | -4/Waste | EMP discharged 17514 | -4/Waste | System corruption reached 10% 17516 | -4/Waste | Spotted C-40 Crusher 17577 | -4/Waste | Spotted C-40 Crusher 17586 | -4/Waste | Spotted C-40 Crusher 17607 | -4/Waste | Spotted C-40 Crusher 17611 | -4/Waste | Discovered new exit (range 22) 17614 | -4/Waste | EMP discharged 17619 | -4/Waste | Spotted C-40 Crusher 17679 | -4/Waste | Entered Factory 18170 | -4/Factory | Build established: Bothacker-Assassin 18184 | -4/Factory | Found Quantum Capacitor 18225 | -4/Factory | Discovered new exit (range 6) 18258 | -4/Factory | Entered Research 18258 | -3/Research | Accompanied by 1 ally 18258 | -3/Research | Evolved 2 slots: Power x1, Utility x1 18374 | -3/Research | Garrison activated, responded to threat 18418 | -3/Research | Lost 3 allies 18701 | -3/Research | Destroyed 14 combat bots 18715 | -3/Research | Lost 10 parts (2p3n3u2w) 18805 | -3/Research | System corruption reached 10% 18886 | -3/Research | Lost 10 parts (2p3n2u3w) 19377 | -3/Research | Lost 5 parts (3n2u) 19771 | -3/Research | Build established: Scavenger-Skirmisher 19801 | -3/Research | System corruption reached 30% 19917 | -3/Research | Discovered new exit (range 9) 19938 | -3/Research | Core integrity fell below 50% 19976 | -3/Research | Core integrity fell below 20% 19980 | -3/Research | Entered Quarantine 19981 | -3/Quarantine | Maximum security lockdown engaged 20004 | -3/Quarantine | Spotted Alpha 7 20006 | -3/Quarantine | Lost 16 parts (1p6n6u3w) 20128 | -3/Quarantine | Destroyed by G-67 Veteran with Plasma Rifle Last Messages --------------- 20076_ >> Machine Analyzer network decryption results: 20076_ Terminal x2 20080_ System corrupted: Mic. Antimatter Reactor rejected. 20081_ ALERT: Assault forces dispatched. 20081_ Acquired Mic. Antimatter Reactor. 20087_ Dropped Imp. Energy Well. 20095_ System corrupted: Matter fused (-6). 20095_ C-30 ARC bursts open, deploying its payload. 20095_ P-80 Master unfolds itself. 20095_ H-77 Assassin unfolds itself. 20095_ E-15 Imp unfolds itself. 20095_ Penetrated by Slug. 20111_ System corrupted: Component data lost. 20115_ Relay Coupler [NC] blown off. 20115_ Imp. Armor Integrity Analyzer blown off. 20115_ Adv. Target Analyzer blown off. 20115_ E-15 Imp destroyed. 20115_ Acquired Unknown Slashing Weapon. 20115_ Identified Segregator. 20127_ 9ZVX/77Y& EHQ0U9ZPL3D,SSMSSVWL7NOM4 4F>M Map ----- +----------------------------------------------------+ | ??????"""""??????????????????????????????????????? | | ??????"""""??????????????????????????????????????? | | ?????????????????????????????????????????????????? | | ????####+####????????????????????????????????????? | | ????# #????????????????????????????????????? | | ????# #????????????????????????????????????? | | ????# #????????????????????????????????????? | | ????# #????????????????????????????????????? | | ????#### #????????????????????????????????????? | | ???????# #??????????????????????T"#???????????? | | ???????# ###+################### "#######?????? | | ???????+ #?????? | | ???????# #?????? | | ???????# """ = """ #?????? | | ???????# """ == """ + ""? | | ???????# """ == """ ############# # "" | | ???????# """ """ #??????????????? #?????" | | ???????# """ """ #??????????????????????? | | ???????# #??????????????????????? | | ???????# #??????????????????????? | | ???????# p #??????????????????????? | | ???????# % p #??????????????????????? | | ???????# = ########## #??????????????????????? | | ???????# #????????# ^ #??????????????????????? | | #??????# #????????# ######################?? | | # ###### #????????# @ #?? | | # #??"""???# ^ #?" | | + #??"T"???# g #?" | | # #????????# A #?" | | # #???""""?###############+###### #?" | | #### ### #??""S""?????????????? ???# #?" | | ???# ??# CC#??""?""????????????# """?# #?? | | #??#???# CC #???????????????????# """ # #?? | | !????# #??"""??????????????# """ # #?? | | ??# #??"""??????????????# "S """ # #?? | | "" """ # #??"""??????????????# """ """ # #?? | | "" """ + #???????????????????# "" # #?? | | "" """ # #???????????????????# # #?? | | "" """?# #???????????????????########### #?? | | "" """?# ######+######################## #?? | | ??????# #?? | | ???????# #?? | | ???????# " #?? | | ???????# "%" #?? | | ???????####################################! #?? | | ??????????????????????????????????????????# #?? | | ??????????????????????????????????????????# #?? | | ??????????????????????????????????????????# ? | | ??????????????????????????????????????????# | | ??????????????????????????????????????????# | +----------------------------------------------------+ Best States ------------- Heat Dissipation 103 Energy Generation 41 Energy Capacity 820 Matter Stores 300 Matter Capacity 300 Sight Range 22 Robot Scan Range 14 Terrain Scan Range 20 Terrain Scan Density 210 Jamming Range 12 Cloak Strength 3 Base Temperature (-) 100 Corruption Block 6 Armor Coverage 600 Resistance: TH 25 Evasion (%) 63 Targeting Accuracy 12 Target Analysis 8 Core Analysis 6 Armor Integrity Analysis 40 Recoil Reduction 4 Offensive Hacking 14 Relay Coupler Types 5 Relay Coupler Value 172 Trap Extractor Capacity 6 Item Schematics ----------------- Hcp. Storage Unit | -10/Materials | Hacked Remote Datajack | -6/Factory | Scanalyzed Robot Schematics ------------------ None Fabricated ------------ Nothing Alien Tech Used ----------------- None Achievements -------------- None Challenges ------------ None Game ------ Seed ExplosivePitchforkBiocell Manual? 0 Play Time 04:09:15 Cumulative 172.3 hours Start 2024.11.20 @ 10:31:16 End 2024.11.20 @ 21:45:06 Sessions 3 Manual Loads 0 Difficulty Rogue Special Mode None Game No. 62 Rogue 61 Adventurer 1 Explorer 0 Win Type - Total 3 Types 3/0/0/0/0/0/0/0/0 Lore% 52 Gallery% 64 Achievement% 50 Wizard Run 0 Options --------- Layout 0 ASCII 1 Keyboard 1 Movement Vi Keybinds 0 Fullscreen 2 Font 36/Terminus++ Map View 76x50 Zoom Use 0% Tactical HUD 1 Map Filters NONE Filters NONE Steam 1 RUN: 1da83bbb-2e73-44f3-a53e-b1674ee5f487